Cogmind - Beta 14 @@@ ROGUE MODE // 2025.03.11 @ 00:20:08 Player: moonlol Result: Self-destructed Performance ------------- Evolutions (2) 1000 Regions Visited (7) 1400 Robots Destroyed (33) 165 Value Destroyed (1484) 1484 Prototype IDs (24) 480 Alien Tech Used (0) 0 Bonus (662) 662 TOTAL SCORE: 5191 Bonus ------- High Alert Combat Kills 11 Follower Combat Kills 151 Entered Garrisons 200 Aligned with FarCom 300 Cogmind --------- Core Integrity 206/550 Matter 280/300 Energy 160/160 System Corruption 7% Temperature Cool (0) Movement Treading (162) Location -8/Materials Parts ------- > --- POWER (1) -------- Light Nuclear Core > --- PROPULSION (4) --- Light Treads Light Treads Light Treads Armored Treads > --- UTILITY (4) ------ Cooling System Improved Power Shielding Improved Utility Shielding Light Armor Plating > --- WEAPON (2) ------- Particle Gun EM Pulse Cannon > --- INVENTORY (5) ---- Light Treads Improved Heat Sink Humpback Mining Laser Peak State ------------ > --- POWER ------------ Cooled Ion Engine > --- PROPULSION ------- Light Treads Aluminum Leg Aluminum Leg Carbon-fiber Leg > --- UTILITY ---------- Cooling System Improved Weapon Shielding Hardened Medium Armor Plating Reactive Plating > --- WEAPON ----------- Particle Gun Guided Plasma Cannon > --- INVENTORY -------- Improved Heat Sink Humpback Heavy EM Pulse Gun Mining Laser [Rating: 30] Favorites ----------- Power Ion Engine Engine Ion Engine Power Core Light Nuclear Core Propulsion Light Treads Treads Light Treads Leg Aluminum Leg Wheel Compact Wheel Flight Unit Flight Unit Utility Cooling System Device Cooling System Storage Small Storage Unit Protection Hardened Medium Armor Plating Weapon Particle Gun Energy Gun Particle Gun Energy Cannon Guided Plasma Cannon Ballistic Gun Light Assault Rifle Ballistic Cannon Flak Cannon Build | -11 -10 -10 -10 -9 -8 -8 -8 ------- Run | Yrd Mat Min Exi Min Mat Gar Mat Slots Evolved 4 | . . . . . 4 . . Power . | . . . . . . . . Propulsion 2 | . . . . . 2 . . Utility 2 | . . . . . 2 . . Weapon . | . . . . . . . . Parts Attached 65 | 7 8 . 2 1 18 22 7 Power 5 | 1 . . . . 1 3 . Engine 3 | 1 . . . . 1 1 . Core 2 | . . . . . . 2 . Reactor . | . . . . . . . . Propulsion 23 | 2 5 . . 1 4 9 2 Treads 10 | . . . . . 1 7 2 Leg 7 | 2 . . . . 3 2 . Wheel 1 | . . . . 1 . . . Hover . | . . . . . . . . Flight 5 | . 5 . . . . . . Utility 22 | 2 2 . . . 7 7 4 Device 8 | 1 1 . . . 4 1 1 Storage 1 | 1 . . . . . . . Processor . | . . . . . . . . Hackware . | . . . . . . . . Protection 13 | . 1 . . . 3 6 3 Artifact . | . . . . . . . . Weapon 15 | 2 1 . 2 . 6 3 1 Energy Gun 6 | 1 . . . . 3 2 . Energy Cannon 4 | . . . 1 . 2 . 1 Ballistic Gun 4 | 1 1 . 1 . . 1 . Ballistic Cannon 1 | . . . . . 1 . . Launcher . | . . . . . . . . Special Weapon . | . . . . . . . . Impact Weapon . | . . . . . . . . Slashing Weapon . | . . . . . . . . Piercing Weapon . | . . . . . . . . Special Melee Weapon . | . . . . . . . . Unidentified Prototypes 1 | . . . . . 1 . . Corrupted Parts 2 | . 1 . . . . 1 . System Corruption 4 | . 1 . . . . 3 . Parts Lost 15 | . . . . 2 4 7 2 Power 1 | . . . . . . 1 . Propulsion 4 | . . . . 1 2 . 1 Utility 7 | . . . . . 2 4 1 Weapon 3 | . . . . 1 . 2 . Highest Loss Streak 5 | . . . . 2 4 5 1 To Critical Strikes . | . . . . . . . . Average Slot Usage (%) 88 | . 94 85 83 82 81 93 98 Engine 8 | . 14 14 14 14 8 5 . Core 2 | . . . . . . 3 9 Treads 12 | . . . . . 7 21 35 Leg 10 | . 16 . . . 20 14 . Flight 8 | . 11 28 28 25 . . . Device 11 | . 14 14 14 14 8 10 9 Protection 17 | . 1 14 14 14 18 20 26 Energy Gun 7 | . 11 . . . 6 13 9 Energy Cannon 2 | . . . 6 . 3 1 5 Ballistic Gun 5 | . 14 14 6 11 . 3 3 Ballistic Cannon 1 | . . . . . 4 . . Peak Build Rating 30 | 7 7 6 14 7 30 30 25 Average Rating 16 | 5 6 6 9 6 22 21 21 On Entrance 10 | . 7 6 6 7 6 30 20 Naked Turns 12 | . . . . . 12 . . Heaviest Build 43 | 14 14 8 17 8 43 43 23 Greatest Support 80 | 20 20 8 8 16 35 80 80 Greatest Overweight (x) 7 | 2 3 . 2 1 7 1 . Average Overweight (x) . | . . . . . . . . Largest Inventory Capacity 8 | 8 8 5 5 5 5 5 5 Average Capacity 5 | 7 6 5 5 5 5 5 5 Most Carried 8 | 6 8 5 5 5 5 5 5 Average Carried 4 | 2 5 4 4 4 4 4 4 Final Capacity 8 | 8 5 5 5 5 5 5 5 Final Carried 6 | 6 5 5 5 4 5 5 5 Class Distribution -------------------- 58% | Scavenger-Mutant 41% | Mutant Dominant Class ---------------- Mutant | -10/Materials Mutant | -10/Mines Mutant | -10/Exiles Mutant | -9/Mines Scavenger-Mutant | -8/Materials Scavenger-Mutant | -8/Garrison Scavenger-Mutant | -8/Materials Resources | -11 -10 -10 -10 -9 -8 -8 -8 ----------- Run | Yrd Mat Min Exi Min Mat Gar Mat Matter Collected 1125 | 272 57 44 . 33 311 300 108 Remotely . | . . . . . . . . Salvage Created 1450 | 20 81 60 . . 391 682 216 Parts 72 | 5 10 . . . 19 28 10 Haulers Intercepted . | . . . . . . . . Recyclers Shooed . | . . . . . . . . Parts Field Recycled . | . . . . . . . . Retrieved Matter . | . . . . . . . . Parts Self-Destructed . | . . . . . . . . Prevented . | . . . . . . . . Kills | -11 -10 -10 -10 -9 -8 -8 -8 ------- Run | Yrd Mat Min Exi Min Mat Gar Mat Combat Hostiles Destroyed 29 | . 3 1 . . 8 13 4 Guns 17 | . 3 1 . . . 10 3 Cannons 10 | . . . . . 8 1 1 AOE 1 | . . . . . . 1 . Classes Destroyed 8 | 1 2 1 . . 3 1 . Worker 1 | . 1 . . . . . . Tunneler 1 | 1 . . . . . . . Watcher 2 | . . . . . 2 . . Swarmer 3 | . 3 . . . . . . Grunt 14 | . . 1 . . 5 7 1 Brawler 2 | . . . . . 1 1 . Sentry 9 | . . . . . 2 4 3 Hunter 1 | . . . . . . 1 . Best Kill Streak 4 | 1 4 1 . . 4 3 2 Combat Bots Only 4 | . 3 1 . . 4 3 2 Max Kills in Single Turn 1 | 1 1 1 . . 1 1 1 Gunslinging . | . . . . . . . . Exploded 1 | . . . . . . 1 . Melee . | . . . . . . . . Uniques/NPCs Destroyed . | . . . . . . . . Combat | -11 -10 -10 -10 -9 -8 -8 -8 -------- Run | Yrd Mat Min Exi Min Mat Gar Mat Hostile Shots Fired 212 | . 14 . . 14 33 122 29 Missed 53 | . 3 . . 5 6 30 9 Damage Taken 2551 | . 85 . . 246 514 1415 291 Core 436 | . 13 . . 79 212 67 65 Absorbed by Shields 88 | . . . . . . 88 . Redirected to Shielding 136 | . . . . 24 9 103 . Ignored by Resistances 50 | . . . . . . 50 . Core Remaining (%) 81 | 100 . . . 63 . . . Volleys Fired 124 | 2 7 8 . . 29 61 17 Largest 2 | 2 2 1 . . 2 2 2 Hottest 128 | 60 60 20 . . 120 120 128 Shots Fired 187 | 4 14 8 . . 33 96 32 Gun 145 | 4 14 8 . . 4 85 30 Cannon 42 | . . . . . 29 11 2 Launcher . | . . . . . . . . Special . | . . . . . . . . Kinetic 47 | 2 7 8 . . 16 . 14 Thermal 94 | . . . . . 17 61 16 Explosive . | . . . . . . . . Electromagnetic 46 | 2 7 . . . . 35 2 Robot Hit Streak 23 | 1 3 6 . . 13 22 23 Robot Miss Streak 8 | 1 2 1 . . 8 4 1 Penetration Max . | . . . . . . . . Secondary Targets 2 | . . . . . . 2 . Max Gunslinging Chain 1 | . . . . . . 1 . Shots Hit Robots 132 | 2 7 7 . . 28 58 30 Core Hits 65 | 1 5 3 . . 23 25 8 Critical Kills 1 | . . 1 . . . . . Critical Parts Destroyed . | . . . . . . . . Critical Strikes 7 | . . 1 . . 1 3 2 Burn 5 | . . . . . 1 2 2 Destroy 1 | . . 1 . . . . . Corrupt 1 | . . . . . . 1 . Melee Attacks . | . . . . . . . . Impact . | . . . . . . . . Slashing . | . . . . . . . . Piercing . | . . . . . . . . Sneak Attacks . | . . . . . . . . Combat Hostiles . | . . . . . . . . Follow-up Attacks . | . . . . . . . . Damage Inflicted 2600 | 18 77 55 . . 712 1262 476 Guns 1366 | 18 77 55 . . 48 736 432 Cannons 1104 | . . . . . 664 396 44 Explosions 130 | . . . . . . 130 . Melee . | . . . . . . . . Ramming . | . . . . . . . . Kinetic 528 | 18 29 55 . . 247 . 179 Thermal 1684 | . . . . . 465 966 253 Explosive . | . . . . . . . . Electromagnetic 388 | . 48 . . . . 296 44 Impact . | . . . . . . . . Slashing . | . . . . . . . . Piercing . | . . . . . . . . Highest Corruption 7 | . 1 1 1 1 4 7 7 Average Corruption 3 | . 1 1 1 1 3 5 7 Corruption Purged . | . . . . . . . . Corruption Blocked . | . . . . . . . . Effects 51 | . 1 1 4 1 11 17 16 Message Errors 14 | . . 1 . 1 3 4 5 Matter Fused 15 | . 1 . 1 . 5 5 3 Heat Flow Errors 2 | . . . 1 . . 1 . Energy Discharges 4 | . . . 1 . . 3 . Data Loss (minor) 6 | . . . 1 . . 2 3 Data Loss (major) 3 | . . . . . 1 1 1 Misfires 1 | . . . . . 1 . . Alerts 3 | . . . . . 1 . 2 Weapon Failures 3 | . . . . . . 1 2 Overload Shots . | . . . . . . . . Overflow Damage . | . . . . . . . . Projectiles . | . . . . . . . . Explosions . | . . . . . . . . Melee . | . . . . . . . . Knockbacks 4 | . . . . . 4 . . Impact . | . . . . . . . . Kinetic 4 | . . . . . 4 . . Secondary . | . . . . . . . . Self-Inflicted Damage 109 | . . . . . . 109 . Shots 2 | . . . . . . 2 . Rammed . | . . . . . . . . Targets Rammed . | . . . . . . . . Kicked . | . . . . . . . . Crushed . | . . . . . . . . Highest Temperature 724 | 20 40 6 262 . 724 383 13 Average Temperature 128 | 12 17 2 133 . 229 82 7 Received Heat Transfer 1044 | . . . . 24 216 660 144 Effects 14 | . . . . . 13 1 . Shutdowns 1 | . . . . . 1 . . Energy Bleed 2 | . . . . . 2 . . Interference 1 | . . . . . 1 . . Matter Decay 2 | . . . . . 1 1 . Damage (minor) 1 | . . . . . 1 . . Damage (major) 6 | . . . . . 6 . . Damage (core) 1 | . . . . . 1 . . Siege Activations . | . . . . . . . . Robots Corrupted . | . . . . . . . . Combat Hostiles . | . . . . . . . . Parts Fried . | . . . . . . . . Impact Corruptions . | . . . . . . . . Robots Melted 1 | . . . . . . 1 . Combat Hostiles 1 | . . . . . . 1 . Parts Melted 15 | . . . . . 4 8 3 Heat Transferred 3731 | . . . . . 1145 1846 740 Parts Sabotaged . | . . . . . . . . Parts Stolen . | . . . . . . . . Parts Stripped . | . . . . . . . . Power Chain Reactions 3 | . . . . . . 3 . Alert | -11 -10 -10 -10 -9 -8 -8 -8 ------- Run | Yrd Mat Min Exi Min Mat Gar Mat Peak Influence 413 | 5 119 203 . 85 267 413 356 Initial 200 | . 3 46 . . 33 76 200 Average 180 | 1 64 127 . 37 129 292 270 Maximum Alert Level 2 | . . 1 . . 1 2 1 Low Security (%) 56 | 100 100 70 . 100 81 26 2 Level 1 31 | . . 29 . . 18 36 97 Level 2 11 | . . . . . . 36 . Level 3 . | . . . . . . . . Level 4 . | . . . . . . . . Level 5 . | . . . . . . . . High Security . | . . . . . . . . Max Security . | . . . . . . . . Squads Dispatched 1 | . 1 . . . . . . Investigation 1 | . 1 . . . . . . Extermination . | . . . . . . . . Reinforcement . | . . . . . . . . Assault . | . . . . . . . . Garrison . | . . . . . . . . Intercept . | . . . . . . . . Searches Triggered . | . . . . . . . . Construction Impeded . | . . . . . . . . Haulers Reinforced . | . . . . . . . . Active Scanning Responses . | . . . . . . . . Cargo Convoy Interrupts . | . . . . . . . . Stealth | -11 -10 -10 -10 -9 -8 -8 -8 --------- Run | Yrd Mat Min Exi Min Mat Gar Mat Distress Signals 2 | . . . . . 1 . 1 Communications Jammed . | . . . . . . . . Distress Signals . | . . . . . . . . Times Spotted 53 | . 6 5 . 8 12 17 5 Peak Tracking Total 5 | . 4 2 . 3 5 5 3 Tactical Retreats 6 | . . . . 3 . 2 1 Traps | -11 -10 -10 -10 -9 -8 -8 -8 ------- Run | Yrd Mat Min Exi Min Mat Gar Mat Traps Triggered 5 | . 1 . . . . 4 . Indirectly . | . . . . . . . . Trap Hack Attempts . | . . . . . . . . Triggered . | . . . . . . . . Disarmed . | . . . . . . . . Reprogrammed . | . . . . . . . . Reused . | . . . . . . . . Traps Extracted . | . . . . . . . . Installed . | . . . . . . . . Triggered . | . . . . . . . . Machines | -11 -10 -10 -10 -9 -8 -8 -8 ---------- Run | Yrd Mat Min Exi Min Mat Gar Mat Machines Disabled 1 | . . . . . . 1 . Max in Single Turn 1 | . . . . . . 1 . Garrison Relay 1 | . . . . . . 1 . Machines Repaired . | . . . . . . . . Machines Dismantled . | . . . . . . . . Machines Sabotaged . | . . . . . . . . Overloaded Fab Kills . | . . . . . . . . Hacking | -11 -10 -10 -10 -9 -8 -8 -8 --------- Run | Yrd Mat Min Exi Min Mat Gar Mat Machines Accessed 11 | . 2 . 2 . 4 1 2 Terminals 7 | . 1 . . . 3 1 2 Fabricators . | . . . . . . . . Repair Stations . | . . . . . . . . Recycling Units 1 | . 1 . . . . . . Scanalyzers . | . . . . . . . . Garrison Access 1 | . . . . . 1 . . Total Hacks 36 | . 11 . 2 . 12 2 9 Successful 23 | . 10 . 2 . 7 . 4 Failed 13 | . 1 . . . 5 2 5 Catastrophic . | . . . . . . . . Database Lockouts . | . . . . . . . . Manual 29 | . 10 . 1 . 8 2 8 Terminals 25 | . 3 . . . 11 2 9 Fabricators . | . . . . . . . . Repair Stations . | . . . . . . . . Recycling Units 8 | . 8 . . . . . . Scanalyzers . | . . . . . . . . Garrison Access 1 | . . . . . 1 . . Terminal Hacks 5 | . . . 2 . 2 . 1 Record 1 | . . . 1 . . . . Branch Access Points 2 | . . . . . 1 . 1 Terminal Index 1 | . . . . . 1 . . Derelict Proto ID Bank 1 | . . . 1 . . . . Fabricator Hacks . | . . . . . . . . Repair Station Hacks . | . . . . . . . . Recycling Unit Hacks 1 | . 1 . . . . . . Report Inventory 1 | . 1 . . . . . . Scanalyzer . | . . . . . . . . Garrison Access Hacks 1 | . . . . . 1 . . Unlock Access 1 | . . . . . 1 . . Unauthorized Hacks 13 | . 6 . . . 4 . 3 Terminals 10 | . 3 . . . 4 . 3 Botnet 5 | . 1 . . . 2 . 2 Operators 2 | . 1 . . . 1 . . Skim 3 | . 1 . . . 1 . 1 Fabricators . | . . . . . . . . Repair Stations . | . . . . . . . . Recycling Units 3 | . 3 . . . . . . Monitor 1 | . 1 . . . . . . Reject 1 | . 1 . . . . . . Recyclers 1 | . 1 . . . . . . Scanalyzers . | . . . . . . . . Garrison Access . | . . . . . . . . Data Cores Recovered . | . . . . . . . . Used . | . . . . . . . . Hacking Detections 8 | . 1 . . . 4 1 2 Full Trace Events . | . . . . . . . . Feedback Events . | . . . . . . . . Feedback Blocked . | . . . . . . . . Robot Schematics Acquired . | . . . . . . . . Robots Built . | . . . . . . . . Authchips . | . . . . . . . . Time . | . . . . . . . . Total Robot Build Rating . | . . . . . . . . Part Schematics Acquired . | . . . . . . . . Parts Built . | . . . . . . . . Authchips . | . . . . . . . . Time . | . . . . . . . . Total Part Build Rating . | . . . . . . . . Parts Repaired . | . . . . . . . . Time . | . . . . . . . . Parts Recycled . | . . . . . . . . Recycled Matter . | . . . . . . . . Retrieved Matter . | . . . . . . . . Retrieved Components . | . . . . . . . . Parts Scanalyzed . | . . . . . . . . Part Schematics Acquired . | . . . . . . . . Parts Damaged . | . . . . . . . . Bothacking | -11 -10 -10 -10 -9 -8 -8 -8 ------------ Run | Yrd Mat Min Exi Min Mat Gar Mat Used RIF Installer . | . . . . . . . . Robots Hacked . | . . . . . . . . Non-combat . | . . . . . . . . Combat . | . . . . . . . . Robot Hacks Applied . | . . . . . . . . Relay Couplers Released 5 | . . . . . . 5 . Machine Destruction 5 | . . . . . . 5 . Fabnet Peak Effective % . | . . . . . . . . Robots Rewired . | . . . . . . . . Allies Hacked . | . . . . . . . . Hacks Repelled . | . . . . . . . . Allies | -11 -10 -10 -10 -9 -8 -8 -8 -------- Run | Yrd Mat Min Exi Min Mat Gar Mat Total Allies 5 | . . 5 . . . . . Largest Group 3 | . . 3 3 2 . . . Highest-Rated Group 55 | . . 55 55 24 . . . Highest-Rated Ally 31 | . . 31 31 16 . . . Total Orders 2 | . . 2 . . . . . STAY 1 | . . 1 . . . . . FOLLOW 1 | . . 1 . . . . . Ally Attacks 32 | . . 22 . 10 . . . Total Damage 358 | . . 290 . 68 . . . Kills 6 | . . 6 . . . . . Allies Corrupted . | . . . . . . . . Allies Melted . | . . . . . . . . Intel | -11 -10 -10 -10 -9 -8 -8 -8 ------- Run | Yrd Mat Min Exi Min Mat Gar Mat Robot Analysis Total . | . . . . . . . . Derelict Logs Recovered 1 | . . 1 . . . . . Drone Launches . | . . . . . . . . Drone Recoveries . | . . . . . . . . Exploration | -11 -10 -10 -10 -9 -8 -8 -8 ------------- Run | Yrd Mat Min Exi Min Mat Gar Mat Turns Passed 3098 | 84 203 227 276 342 690 894 382 Spaces Moved 2156 | 54 189 329 297 410 328 375 174 Core 42 | 10 . . . . 32 . . Treads 406 | . . . . . 17 215 174 Legs 529 | 44 68 . . . 257 160 . Wheels 75 | . . . . 53 22 . . Hover . | . . . . . . . . Flight 1104 | . 121 329 297 357 . . . Fastest Speed 37 | 50 37 37 37 37 50 120 160 Average Speed 100 | 116 85 37 70 45 166 162 160 Slowest Speed 400 | 150 290 37 197 120 400 240 162 Overloaded Moves . | . . . . . . . . Propulsion Burnouts . | . . . . . . . . Robots Hopped 9 | . 2 2 . 5 . . . Cave-ins Triggered . | . . . . . . . . Exploration Rate (%) 39 | 4 39 60 62 78 27 28 18 Regions Visited 7 Branch Regions 3 Pre-discovered Areas 1 | . . . 1 . . . . Known Exits Taken 1 | . . . . . 1 . . Unknown Exits Taken 5 | 1 1 1 1 1 . . . Scrap Searched 3 | . . 1 . 2 . . . Spaces Dug . | . . . . . . . . Terrain Destroyed 8 | . . . . . . 8 . Melee . | . . . . . . . . Projectile . | . . . . . . . . AOE 8 | . . . . . . 8 . Terrain Rammed . | . . . . . . . . Walls Destroyed . | . . . . . . . . Machines Disabled . | . . . . . . . . Actions | -11 -10 -10 -10 -9 -8 -8 -8 --------- Run | Yrd Mat Min Exi Min Mat Gar Mat Total 2870 | 68 215 425 363 561 437 561 240 Wait 497 | . 5 89 59 156 53 94 41 Move 2132 | 53 184 324 296 400 327 374 174 Hop 8 | . 2 2 . 4 . . . Pick Up 14 | 6 2 1 1 . 3 1 . Fast Attach 29 | 7 1 . 2 . 11 6 2 Attach 4 | . 1 . . 1 1 1 . Detach 5 | . 2 . 1 . 2 . . Swap 32 | . 6 . . . 6 15 5 Drop 25 | . 5 1 4 . 5 9 1 Fire 124 | 2 7 8 . . 29 61 17 Melee . | . . . . . . . . Ram . | . . . . . . . . Kick . | . . . . . . . . Crush . | . . . . . . . . Escape Stasis . | . . . . . . . . Rewire . | . . . . . . . . Trap . | . . . . . . . . Miscellaneous . | . . . . . . . . Route ------- -11/Scrapyard -10/Materials (discovered 2 exits: [*Min x2]) -10/Mines (discovered 3 exits: [*Mat x2] / *Exi) -10/Exiles -9/Mines -8/Materials -8/Garrison -8/Materials History --------- Turn | Location | Event 14 | -11/Scrapyard | Discovered new exit (range 16) 85 | -11/Scrapyard | Entered Materials 280 | -10/Materials | Discovered new exit (range 9) 285 | -10/Materials | Discovered new exit (range 14) 288 | -10/Materials | Entered Mines 302 | -10/Mines | Discovered new exit (range 5) 304 | -10/Mines | Assisted by bots powering up and referring to "LRC-V3" 309 | -10/Mines | Build established: Mutant 311 | -10/Mines | Learned Materials interactive machine intel 407 | -10/Mines | Discovered new exit (range 16) 470 | -10/Mines | Deemed a non-threat by the Exiles lab entrance 470 | -10/Mines | Discovered new exit (range 5) 515 | -10/Mines | Entered Exiles 515 | -10/Exiles | Accompanied by 3 allies 524 | -10/Exiles | Met 8R-AWN 531 | -10/Exiles | Met EX-HEX 543 | -10/Exiles | Met EX-BIN 545 | -10/Exiles | Led the pair of lost Derelicts to a safe place 547 | -10/Exiles | Aligned with FarCom system 548 | -10/Exiles | Given EX-Vault access code 558 | -10/Exiles | Opened EX-Vault 560 | -10/Exiles | Found Gui. Plasma Cannon 603 | -10/Exiles | Warned to stay clear of 0b10 Research branches 702 | -10/Exiles | Met EX-DEC 705 | -10/Exiles | Learned location of Zion (-6) 729 | -10/Exiles | Discovered new exit (range 10) 791 | -10/Exiles | Left Exiles lab with Gui. Plasma Cannon 791 | -10/Exiles | Entered Mines 791 | -9/Mines | Accompanied by 2 allies 801 | -9/Mines | Assembled infested the area 857 | -9/Mines | Received a Rocket Launcher from a helpful Derelict 869 | -9/Mines | Met a Derelict bent on vengeance 1122 | -9/Mines | Discovered new exit (range 7) 1133 | -9/Mines | Entered Materials 1133 | -8/Materials | Evolved 4 slots: Propulsion x2, Utility x2 1134 | -8/Materials | Loaded intel: 19 interactive machine locations 1222 | -8/Materials | Lost 4 parts (2n2u) 1610 | -8/Materials | Build established: Scavenger-Mutant 1716 | -8/Materials | Identified exit to Garrison 1823 | -8/Materials | Entered Garrison 1927 | -8/Garrison | Triggered checkpoint 1958 | -8/Garrison | Garrison Relay disabled 2159 | -8/Garrison | Triggered checkpoint 2381 | -8/Garrison | Core integrity fell below 50% 2403 | -8/Garrison | Lost 5 parts (1p3u1w) 2690 | -8/Garrison | Discovered new exit (range 15) 2717 | -8/Garrison | Entered Materials 3099 | -8/Materials | Self-destructed Last Messages --------------- 03053_ Y-45 Defender destroyed. 03056_ Acquired 40 matter. 03062_ System corrupted: Component data lost. 03072_ Acquired Lgt. Armor Plating. 03074_ Acquired Imp. Power Shielding. 03082_ Connecting with Terminal... >>Trojan(Botnet) Trojan loaded successfully. Testing... Terminal linked with 1 system. Awaiting botnet instructions. >>Trojan(Skim) Trojan loaded successfully. Testing... Terminal linked with 0 systems. Please expand to 4 more systems! >>Access(Branch) No branch access points found. 03086_ 316XHGI>ZHM KP:ZTZUW90SH5NT>E Map ----- +----------------------------------------------------+ | ?????????????????????????????????????????????????? | | ?????????????????????????????????????????????????? | | ???????????????????????????????????????????????### | | ???????????????????????????????????????????????# | | ???????????????????????????????????????????????# | | ???????????????????????????????????????????????# | | ???????????????????????????????????????????????# | | ????????????????????????????????????????????????? | | ?????????????????????????????????????????????????? | | ?????????????????????????????????????????????????? | | ?????????????????????????????????????????????????? | | ?????????????????????????????????????????????????? | | ?????????????????????????????????????????????????? | | ?????????????????????????????????????????????????? | | ???????????????????????????????????????????####### | | ???????????????????????????????????????????# | | ???????????????????????????????????????????# | | ???????????????????????????????????????????# ! | | ???????????????????????????????????????????# | | ???????????????????????????????????????????# """ | | ???????????????????????????????????????????# """ | | ????????????????# ?????????????????????????# """ | | ????????????????# ?????????????########### | | ??????????????#+# ???????????# # | | ??????????????# ########## T # #### | | ??????????????# a@ + # #??# | | ????????????# t g ############# + #??# | | ??????????????????g??????????????# /!! # #??# | | ?????????????????????????????????# !!! # ##?## | | ?????????????????????????????????# !!!!= # #??# | | ????????w????????????????????????# [%*= # #??# | | ?????????????????????????????????#######+### #??# | | ???????????????????????????????????????# #?# #??# | | ??????????????????w????????????????????# #?# #??## | | ???????????????????????????????????????# #?#+#???? | | ???????????????????????????????????????# #???????? | | ???????????????????????????????????????# +???????? | | ???????????????????????????????????????? #???????# | | ???????????????????????????????????????? ????????# | | ???????????????????????????????????????? ????????# | | ???????????????????????????????????????? ????????# | | ???????????????????????????????????????? ????????# | | ???????????????????????????????????????? ????????# | | ???????????????????????????????????????? ????????# | | ?????????????????????????????????????????????????# | | ?????????????????????????????????????????????????# | | ?????????????????????????????????????????????????# | | ?????????????????????????????????????????????????# | | ?????????????????????????????????????????????????# | | ?????????????????????????????????????????????????# | +----------------------------------------------------+ Best States ------------- Heat Dissipation 67 Energy Generation 14 Energy Capacity 280 Matter Stores 300 Matter Capacity 300 Sight Range 16 Terrain Scan Density 10 Armor Coverage 525 Resistance: KI 20 Power Shielding 66 Propulsion Shielding 33 Utility Shielding 66 Weapon Shielding 66 Evasion (%) 62 Recoil Reduction 4 Particle Charging 15 Item Schematics ----------------- None Robot Schematics ------------------ None Fabricated ------------ Nothing Alien Tech Used ----------------- None Achievements -------------- Short-term Sacrifices Challenges ------------ None Game ------ Seed OvertunedSmartbombBarrier Manual? 0 Play Time 00:22:24 Cumulative 100.8 hours Start 2025.03.10 @ 23:59:21 End 2025.03.11 @ 00:20:08 Sessions 1 Manual Loads 0 Difficulty Rogue Special Mode None Game No. 116 Rogue 68 Adventurer 47 Explorer 1 Win Type - Total 10 Types 7/0/0/1/0/0/2/0/0 Lore% 51 Gallery% 58 Achievement% 63 Wizard Run 0 Options --------- Layout 0 ASCII 0 Keyboard 1 Movement Numpad Keybinds 0 Fullscreen 2 Font 18/SmallcapsGlow Map View 76x50 Zoom Use 0% Tactical HUD 1 Map Filters NONE Filters NONE Steam 1 RUN: cb0e5d1b-a29c-464e-a7b2-bcb5b400bcf2